bitfinex-derivatives/quotes_SOLF0:USTF0_20250221
["timestamp","ask_amount","ask_price","bid_price","bid_amount"]
[1740159231954,41.64952906,172.85,172.59,151.38]
[1740159232158,44.23982906,172.84,172.69,41.64952906]
[1740159232351,44.23982906,172.84,172.7,2.4752]
[1740159232556,0.03801754,172.78,172.75,0.0366485]
[1740159233159,0.03801754,172.78,172.75,41.68617756]
[1740159233458,3.44056462,172.9,172.75,41.68617756]
[1740159233762,2.4352,172.9,172.72,41.64952906]
[1740159233956,5.7849,172.81,172.72,41.64952906]
[1740159234159,41.64952906,172.89,172.72,41.64952906]
[1740159234359,2.4352,172.9,172.76,41.64952906]
[1740159234559,2.4352,172.9,172.79,41.69380116]
[1740159234756,0.04288104,172.82,172.79,41.69380116]
[1740159234962,2.4352,172.9,172.79,41.64952906]
[1740159235163,0.04297344,172.82,172.79,0.04035557]
[1740159235461,0.04222409,172.82,172.79,0.04106182]
[1740159235660,0.04222409,172.82,172.79,5.82616182]
[1740159235862,0.04222409,172.82,172.79,0.04106182]
[1740159236257,195.79223717,172.86,172.79,41.69059088]
[1740159236863,195.79223717,172.86,172.79,0.04106182]
[1740159237461,0.04116887,172.84,172.79,0.04106182]
[1740159237863,5.82526887,172.84,172.79,0.04106182]
[1740159238065,0.04116887,172.84,172.79,0.04106182]
[1740159238567,5.7848,172.81,172.79,0.04106182]
[1740159239168,5.7845,172.82,172.79,0.04106182]
[1740159239369,0.04116887,172.84,172.79,0.04106182]
[1740159239769,5.7848,172.81,172.79,0.04106182]
[1740159239969,0.04116887,172.84,172.79,0.04106182]
[1740159240167,0.04116887,172.84,172.79,5.82626182]
[1740159240370,0.04116887,172.84,172.79,0.04106182]
[1740159240760,195.79223717,172.9,172.8,41.64952906]
[1740159240960,195.79223717,172.9,172.83,41.64952906]
[1740159241160,195.79223717,172.91,172.83,41.64952906]
[1740159241371,195.79223717,172.91,172.77,41.64952906]
[1740159241567,41.64952906,172.89,172.76,2.4494]
[1740159241767,5.7829,172.87,172.82,5.7842]
[1740159241969,0.04162516,172.84,172.81,41.68797364]
[1740159242170,195.79223717,172.91,172.81,41.68797364]
[1740159242370,5.7822,172.89,172.84,5.7835]
[1740159242570,195.79223717,172.91,172.81,41.64952906]
[1740159242970,195.79223717,172.93,172.81,41.64952906]
[1740159243277,0.04436801,172.89,172.85,0.04145878]
[1740159243973,5.7831,172.86,172.85,0.04145878]
[1740159244870,0.04436801,172.89,172.85,0.04145878]
[1740159244871,5.7829,172.87,172.85,0.04145878]
[1740159245068,0.04436801,172.89,172.86,5.7831]
[1740159245373,0.04436801,172.89,172.85,0.04145878]
[1740159245568,5.7831,172.86,172.85,0.04145878]
[1740159245969,0.04436801,172.89,172.85,0.04145878]
[1740159246674,0.04436801,172.89,172.85,2.48975878]
[1740159247581,0.04436801,172.89,172.85,0.04145878]
[1740159247766,5.7831,172.86,172.85,0.04145878]
[1740159248275,5.7827,172.88,172.85,0.04145878]
[1740159248465,0.04436801,172.89,172.85,0.04145878]
[1740159250079,5.7825,172.88,172.85,0.04145878]
[1740159250279,0.04436801,172.89,172.85,0.04145878]
[1740159250673,195.79223717,172.98,172.85,0.04145878]
[1740159250875,2.4489,172.99,172.87,41.64952906]
[1740159251077,195.79223717,173.0,172.88,2.4532]
[1740159251268,195.79223717,173.0,172.92,41.64952906]
[1740159251473,195.79223717,173.0,172.94,41.64952906]
[1740159251668,149.66111643,173.0,172.99,5.7788]
[1740159251873,149.66111643,173.0,172.95,0.04399784]
[1740159251874,0.03719273,172.99,172.95,0.04399784]
[1740159252177,5.7798,172.96,172.95,0.04399784]
[1740159252572,41.64952906,172.96,172.86,12.08]
[1740159252772,41.64952906,172.93,172.75,192.0]
[1740159252971,41.64952906,172.9,172.74,41.64952906]
[1740159253181,41.64952906,172.9,172.77,41.64952906]
[1740159253779,0.04378878,172.85,172.82,0.04342401]
[1740159254275,5.7841,172.83,172.82,0.04342401]
[1740159254575,0.04378878,172.85,172.82,0.04342401]
[1740159256179,5.7841,172.83,172.82,0.04342401]
[1740159256379,41.64952906,172.84,172.7,2.5177]
[1740159256680,41.64952906,172.81,172.7,2.5177]
[1740159256879,5.7851,172.81,172.7,2.5177]
[1740159257081,2.5783,172.82,172.7,2.5177]
[1740159257282,5.7847,172.82,172.7,2.5177]
[1740159257683,0.03825133,172.78,172.74,0.04267501]
[1740159258087,0.03825133,172.78,172.75,41.64952906]
[1740159258281,44.18712906,172.9,172.75,41.64952906]
[1740159258478,5.7834,172.86,172.78,5.7858]
[1740159258677,46.76032906,172.9,172.75,41.64952906]
[1740159258875,41.64952906,172.87,172.73,4.7605]
[1740159259079,5.7847,172.82,172.75,5.7868]
[1740159259477,0.04415565,172.8,172.77,0.04035289]
[1740159259675,5.7851,172.81,172.77,0.04035289]
[1740159259883,0.0415388,172.8,172.77,0.04035289]
[1740159260082,41.64952906,172.87,172.77,0.04035289]
[1740159260283,0.0400621,172.8,172.77,5.82645289]
[1740159260582,41.64952906,172.87,172.77,5.82645289]
[1740159260781,0.03973421,172.8,172.79,5.7855]
[1740159260980,0.0410198,172.84,172.77,0.04035289]
[1740159261284,46.76032906,172.9,172.78,0.03948616]
[1740159261475,0.03664523,172.82,172.73,4.7605]
[1740159261674,46.76032906,172.9,172.82,0.03756308]
[1740159261875,46.76032906,172.9,172.79,5.7852]
[1740159262076,0.03907082,172.88,172.84,0.0419623]
[1740159262284,46.76032906,172.9,172.78,41.64952906]
[1740159262482,0.04311082,172.88,172.84,0.0413164]
[1740159264685,5.82561082,172.88,172.84,0.0413164]
[1740159264885,0.04311082,172.88,172.84,0.0413164]
[1740159265185,0.04311082,172.88,172.85,5.7834]
[1740159266184,0.04311082,172.88,172.84,0.0413164]
[1740159266882,5.783,172.87,172.84,0.0413164]
[1740159267079,0.04311082,172.88,172.84,0.0413164]
[1740159267487,5.7835,172.85,172.84,0.0413164]
[1740159268586,5.783,172.87,172.84,0.0413164]
[1740159268784,0.04311082,172.88,172.84,0.0413164]
[1740159269187,5.7835,172.85,172.84,0.0413164]
[1740159269587,41.64952906,172.87,172.74,2.1197]
[1740159269788,5.1959,172.86,172.73,196.7605]
[1740159269987,41.64952906,172.84,172.73,192.0]
[1740159270186,41.64952906,172.81,172.73,192.0]
[1740159270381,41.64952906,172.81,172.68,2.1172]
[1740159270789,0.04126622,172.76,172.73,0.0386549]
[1740159271592,0.04126622,172.76,172.75,5.7868]
[1740159271786,5.1959,172.86,172.73,41.68818396]
[1740159271981,5.1959,172.86,172.73,41.64952906]
[1740159272186,5.1959,172.86,172.76,41.64952906]
[1740159272583,5.1959,172.86,172.73,41.64952906]
[1740159272993,0.04145651,172.81,172.78,0.03889328]
[1740159273491,41.69098557,172.81,172.69,41.64952906]
[1740159273692,41.64952906,172.81,172.69,41.64952906]
[1740159273890,41.64952906,172.81,172.68,192.0]
[1740159274096,41.64952906,172.78,172.68,192.0]
[1740159274293,5.1848,172.77,172.68,192.0]
[1740159274495,5.1848,172.77,172.68,233.64952906]
[1740159274790,5.1848,172.77,172.71,0.04108498]
[1740159274791,0.04239713,172.74,172.71,0.04108498]
[1740159274984,0.04239713,172.74,172.71,41.69061404]
[1740159275389,0.04239713,172.74,172.71,0.04108498]
[1740159275893,0.04239713,172.74,172.73,41.64952906]
[1740159276096,2.6408,172.83,172.73,41.64952906]
[1740159277289,2.6408,172.83,172.76,0.03918585]
[1740159277290,0.04275493,172.8,172.76,0.03918585]
[1740159279394,0.04275493,172.8,172.76,41.68871491]
[1740159280293,0.04275493,172.8,172.76,0.03918585]
[1740159283498,275.40782515,172.96,172.78,41.64952906]
[1740159283499,46.79612906,172.93,172.78,41.64952906]
[1740159283698,1.00423122,172.92,172.78,41.64952906]
[1740159284498,1.00423122,172.92,172.81,41.64952906]
[1740159284703,0.04100724,172.87,172.83,0.04372249]
[1740159286695,0.04100724,172.87,172.84,41.64952906]
[1740159286894,0.00211396,172.87,172.84,41.64952906]
[1740159287098,2.4662,172.97,172.84,41.64952906]
[1740159287300,2.4662,172.97,172.83,0.04372249]
[1740159287301,5.0999,172.97,172.87,41.64952906]
[1740159288302,0.04330997,172.94,172.9,0.03692435]
[1740159288506,0.04330997,172.94,172.9,41.68645341]
[1740159288804,0.04330997,172.94,172.93,41.64952906]
[1740159290003,0.04330997,172.94,172.9,41.68645341]
[1740159290804,7.5831,173.04,172.93,41.64952906]
[1740159291303,7.5831,173.04,172.91,2.4637]
[1740159291605,7.5831,173.04,172.93,41.64952906]
[1740159291998,0.03929653,173.0,172.97,0.03860272]
[1740159298309,0.03929653,173.0,172.88,233.64952906]
[1740159298807,2.4573,173.01,172.88,233.64952906]
[1740159299006,41.64952906,173.05,172.92,41.64952906]
[1740159299210,44.26432906,173.07,172.92,41.64952906]
[1740159299405,0.041991,173.0,172.97,0.04126506]
[1740159299605,0.041991,173.0,172.88,192.0]
[1740159299805,2.4964,173.0,172.88,192.0]
[1740159300105,41.64952906,172.95,172.84,2.5561]
[1740159300402,41.64952906,172.95,172.81,233.64952906]
[1740159300403,41.64952906,172.92,172.81,192.0]
[1740159300612,2.4964,172.91,172.81,192.0]
[1740159300807,0.04417119,172.88,172.85,0.03854718]
[1740159302606,41.64952906,172.86,172.73,6.9269]
[1740159302810,2.5138,172.85,172.73,4.8703]
[1740159303110,2.5138,172.85,172.73,2.4919]
[1740159303512,2.5138,172.85,172.72,192.0]
[1740159303711,0.03836048,172.81,172.77,0.04358819]
[1740159305810,2.50846048,172.81,172.77,0.04358819]
[1740159306713,0.03836048,172.81,172.77,0.04358819]
[1740159309415,0.03836048,172.81,172.8,41.64952906]
[1740159309610,0.03836048,172.81,172.77,41.69311725]
[1740159309811,0.03836048,172.81,172.77,0.04358819]
[1740159310406,0.03836048,172.81,172.77,41.69311725]
[1740159310618,0.03836048,172.81,172.8,41.64952906]
[1740159311018,2.6744,172.93,172.8,41.64952906]
[1740159311218,2.6744,172.93,172.83,41.64952906]
[1740159311518,2.6744,172.93,172.78,2.4822]
[1740159311814,1.00552957,172.92,172.77,192.0]
[1740159312020,2.6744,172.93,172.79,41.64952906]
[1740159312220,0.03807472,172.86,172.83,0.03702271]
[1740159312615,2.6744,172.93,172.83,0.03702271]
[1740159312822,0.03707905,172.86,172.74,2.5361]
[1740159313023,41.64952906,172.89,172.74,2.5361]
[1740159313718,1.00521584,172.88,172.74,2.5361]
[1740159314222,0.03791623,172.83,172.79,0.04346632]
[1740159314919,0.03791623,172.83,172.69,2.6652]
[1740159315221,2.6866,172.85,172.69,2.6652]
[1740159315630,2.511,172.84,172.69,2.6652]
[1740159316315,0.03980429,172.8,172.76,0.03923718]
[1740159317414,0.03980429,172.8,172.78,41.64952906]
[1740159317925,0.03980429,172.8,172.76,0.03923718]
[1740159325126,0.03980429,172.8,172.76,25.77511771]
[1740159326121,0.03980429,172.8,172.79,25.73588053]
[1740159326524,5.2561,172.87,172.79,25.73588053]
[1740159327319,5.2561,172.87,172.76,25.73588053]
[1740159327520,2.6163,172.87,172.74,2.0607]
[1740159327725,0.04345253,172.83,172.8,0.04109025]
[1740159329223,0.04345253,172.83,172.82,25.73588053]
[1740159329419,0.04345253,172.83,172.57,16.16473831]
[1740159329420,68.87521359,172.83,172.57,16.16473831]
[1740159329620,25.73588053,172.88,172.57,16.16473831]
[1740159329621,25.73588053,172.72,172.57,16.16473831]
[1740159329821,25.73588053,172.75,172.58,6.9721]
[1740159330022,25.73588053,172.78,172.61,25.73588053]
[1740159330423,25.73588053,172.8,172.67,25.73588053]
[1740159330619,4.9526,172.82,172.72,25.73588053]
[1740159330826,25.73588053,172.92,172.75,25.73588053]
[1740159331019,25.73588053,172.92,172.72,25.73588053]
[1740159331020,25.73588053,172.92,172.78,25.73588053]
[1740159331221,10.6,173.07,172.81,25.73588053]
[1740159331528,25.73588053,172.96,172.81,25.73588053]
[1740159331920,0.03975813,172.9,172.87,0.03942334]
[1740159332230,25.77563866,172.9,172.87,0.03942334]
[1740159332429,25.77563866,172.9,172.76,2.4866]
[1740159332430,25.73588053,172.87,172.76,2.4866]
[1740159332823,25.73588053,172.84,172.76,2.4866]
[1740159333023,25.73588053,172.84,172.74,10.56]
[1740159333629,0.04039563,172.81,172.77,0.03787262]
[1740159338425,25.77627616,172.81,172.77,0.03787262]
[1740159338625,2.5384,172.8,172.77,0.03787262]
[1740159340925,0.04039563,172.81,172.77,0.03787262]
[1740159349338,2.77019563,172.81,172.77,0.03787262]
[1740159349635,5.33309563,172.81,172.77,0.03787262]
[1740159350035,2.77019563,172.81,172.77,0.03787262]
[1740159350835,2.77019563,172.81,172.7,194.5834]
[1740159351138,2.7298,172.81,172.7,2.5834]
[1740159352038,0.03944737,172.77,172.74,0.03655023]
[1740159355237,25.73588053,172.76,172.64,151.46]
[1740159355435,0.03944737,172.77,172.58,48.08328187]
[1740159355436,25.73588053,172.73,172.6,2.6073]
[1740159355639,2.7214,172.72,172.6,2.6073]
[1740159356034,25.73588053,172.7,172.58,31.94331512]
[1740159356238,25.73588053,172.67,172.58,31.94331512]
[1740159356434,2.66372024,172.66,172.62,0.04368656]
[1740159356635,2.66372024,172.66,172.58,31.94331512]
[1740159357939,2.66372024,172.66,172.6,0.04280328]
[1740159358133,0.03912024,172.66,172.6,0.04280328]
[1740159358339,0.03912024,172.66,172.61,25.73588053]
[1740159360532,25.73588053,172.79,172.64,25.73588053]
[1740159360737,2.6565,172.78,172.64,25.73588053]
[1740159360934,2.6565,172.78,172.67,25.73588053]
[1740159361843,2.6565,172.78,172.71,0.04084577]
[1740159361844,0.038287,172.74,172.71,0.04084577]
[1740159362443,0.038287,172.74,172.61,28.51448053]
[1740159362741,25.73588053,172.76,172.61,28.51448053]
[1740159362941,2.6565,172.78,172.61,28.51448053]
[1740159363138,25.73588053,172.76,172.61,28.51448053]
[1740159363543,0.04438351,172.7,172.67,0.03726788]
[1740159363742,25.78026404,172.7,172.58,192.0]
[1740159364043,25.73588053,172.67,172.53,10.22]
[1740159364244,25.73588053,172.67,172.52,25.73588053]
[1740159364636,41.90914698,172.66,172.52,41.90914698]
[1740159365039,41.90914698,172.66,172.57,0.04351895]
[1740159365040,0.04220774,172.61,172.57,0.04351895]
[1740159365243,41.90914698,172.6,172.4,402.3980844]
[1740159365448,41.90914698,172.55,172.41,202.0236518]
[1740159365755,47.11564698,172.59,172.44,136.25523613]
[1740159366444,0.04212568,172.54,172.51,0.03876518]
[1740159366846,0.04212568,172.54,172.45,0.25807]
[1740159367549,0.04212568,172.54,172.47,41.90914698]
[1740159368048,0.04212568,172.54,172.45,0.25807]
[1740159368842,0.04212568,172.54,172.46,41.90914698]
[1740159371048,0.04212568,172.54,172.45,0.25807]
[1740159371347,41.95127266,172.54,172.45,0.25807]
[1740159371546,0.04212568,172.54,172.45,0.25807]
[1740159372744,41.95127266,172.54,172.45,0.25807]
[1740159372946,0.04212568,172.54,172.45,0.25807]
[1740159373849,0.04212568,172.54,172.45,42.16721698]
[1740159375143,41.90914698,172.52,172.45,0.25807]
[1740159375350,2.6441,172.51,172.45,0.25807]
[1740159375755,2.57717198,172.5,172.45,0.25807]
[1740159375955,2.57717198,172.5,172.36,2.5365]
[1740159376154,2.6258,172.49,172.37,41.90914698]
[1740159376457,0.04096592,172.45,172.4,41.90914698]
[1740159376658,41.90914698,172.41,172.11,34.15359205]
[1740159376857,0.04096592,172.45,172.3,41.90914698]
[1740159377051,41.90914698,172.47,172.3,41.90914698]
[1740159377257,0.03807559,172.39,172.24,41.90914698]
[1740159377452,41.90914698,172.44,172.3,41.90914698]
[1740159377658,0.03975547,172.33,172.3,41.90914698]
[1740159378055,41.90914698,172.47,172.19,8.0718]
[1740159378264,0.04404481,172.33,172.27,41.90914698]
[1740159378661,41.90914698,172.47,172.3,41.90914698]
[1740159378861,0.04202105,172.32,172.3,41.90914698]
[1740159379062,41.90914698,172.47,172.3,41.90914698]
[1740159379263,0.04152262,172.33,172.3,41.90914698]
[1740159379458,41.90914698,172.47,172.3,41.90914698]
[1740159379665,0.03811077,172.33,172.3,41.90914698]
[1740159379864,0.03811077,172.33,172.18,343.74]
[1740159380064,41.90914698,172.38,172.24,41.90914698]
[1740159380256,0.04377529,172.33,172.24,41.90914698]
[1740159380460,0.04377529,172.33,172.21,41.90914698]
[1740159380661,41.90914698,172.38,172.24,41.90914698]
[1740159380865,41.90914698,172.4,172.24,41.90914698]
[1740159381365,0.037473,172.34,172.24,41.90914698]
[1740159383267,0.037473,172.34,172.27,41.90914698]
[1740159383463,0.037473,172.34,172.28,7.7932]
[1740159383670,2.7,172.39,172.28,7.7932]
[1740159383972,0.04025796,172.33,172.28,7.7932]
[1740159384174,0.04025796,172.33,172.28,2.5939]
[1740159388166,25.87471173,172.32,172.25,2.6835]
[1740159388380,25.87471173,172.29,172.19,5.3746]
[1740159388975,0.04246547,172.26,172.19,5.3746]
[1740159390068,25.9171772,172.26,172.17,2.6385]
[1740159390675,42.10497248,172.25,172.17,2.6385]
[1740159391179,42.10497248,172.25,172.07,151.84]
[1740159391374,42.10497248,172.25,172.13,5.2889]
[1740159391771,0.04239139,172.18,172.13,5.2889]
[1740159393667,0.04239139,172.18,172.08,194.6543]
[1740159393868,0.04239139,172.18,172.08,199.9361]
[1740159396172,0.04239139,172.18,172.1,42.10497248]
[1740159396878,42.14736387,172.18,172.08,2.6543]
[1740159398279,0.04239139,172.18,172.08,2.6543]
[1740159398781,0.04239139,172.18,172.1,42.10497248]
[1740159399576,0.04239139,172.18,172.08,2.6543]
[1740159401082,0.04239139,172.18,172.1,42.10497248]
[1740159401274,0.04239139,172.18,172.08,2.6543]
[1740159403680,0.04239139,172.18,172.1,42.10497248]
[1740159405283,42.10497248,172.17,172.08,2.6543]
[1740159405780,0.04230877,172.14,172.08,2.6543]
[1740159406284,0.04230877,172.14,171.86,152.0]
[1740159406285,42.10497248,172.11,171.86,152.0]
[1740159406481,42.10497248,172.11,171.99,2.546]
[1740159406678,0.03756654,172.07,172.0,5.4935]
[1740159407281,0.03756654,172.07,171.91,42.10497248]
[1740159407582,42.10497248,172.11,171.94,42.10497248]
[1740159407883,0.04343747,172.01,171.93,5.2966]
[1740159408186,42.10497248,172.05,171.93,5.2966]
[1740159408486,0.03730869,171.99,171.92,2.7429]
[1740159409985,0.03730869,171.99,171.92,44.84787248]
[1740159410179,17.38,172.36,171.95,42.10497248]
[1740159410381,42.10497248,172.1,171.97,42.10497248]
[1740159411480,0.04189432,172.05,171.97,42.10497248]
[1740159411683,0.04189432,172.05,172.02,0.04310155]
[1740159412877,42.10497248,172.04,172.02,0.04310155]
[1740159413078,42.10497248,172.04,171.96,2.5996]
[1740159413586,42.10497248,172.04,171.88,42.10497248]
[1740159413782,42.10497248,172.01,171.88,42.10497248]
[1740159414282,0.04348835,171.96,171.88,42.10497248]
[1740159415190,0.04348835,171.96,171.86,2.7071]
[1740159415486,0.04348835,171.96,171.87,2.6329]
[1740159416685,42.10497248,171.95,171.81,140.29579604]
[1740159416885,44.85357248,171.95,171.81,140.29579604]
[1740159417086,47.53827248,171.95,171.81,140.29579604]
[1740159417386,0.03976946,171.9,171.81,140.29579604]
[1740159417590,42.10497248,171.86,171.78,8.0449]
[1740159417888,42.10497248,171.89,171.78,8.0449]
[1740159418183,0.04321932,171.84,171.79,42.10497248]
[1740159418381,42.10497248,171.92,171.79,42.10497248]
[1740159418587,47.53827248,171.95,171.82,42.10497248]
[1740159418783,42.10497248,171.98,171.82,42.10497248]
[1740159418981,42.10497248,172.01,171.85,42.10497248]
[1740159419380,42.10497248,172.01,171.88,42.10497248]
[1740159419689,0.04058035,171.95,171.91,0.03807353]
[1740159420593,0.04058035,171.95,171.92,42.10497248]
[1740159421189,0.04058035,171.95,171.91,0.03807353]
[1740159421391,49.96037248,172.07,171.92,42.10497248]
[1740159421588,7.8554,172.07,171.95,42.10497248]
[1740159421885,196.61932269,172.09,172.01,42.10497248]
[1740159422094,196.61932269,172.09,172.02,2.7883]
[1740159422389,2.7832,172.15,172.04,42.10497248]
[1740159422582,42.10497248,172.19,172.04,42.10497248]
[1740159422788,42.10497248,172.19,172.04,42.14282876]
[1740159422986,42.10497248,172.19,172.04,42.10497248]
[1740159423288,2.7832,172.2,172.07,42.10497248]
[1740159423486,2.7832,172.2,171.94,152.16]
[1740159423487,42.10497248,172.19,171.94,152.16]
[1740159423792,42.10497248,172.16,172.01,42.10497248]
[1740159423991,0.03751872,172.08,172.05,0.04200903]
[1740159424290,42.10497248,172.16,172.01,42.10497248]
[1740159424793,0.03844319,172.08,172.05,0.03876802]
[1740159425292,42.10497248,172.13,172.01,42.10497248]
[1740159425494,0.0408501,172.08,172.05,0.03953306]
[1740159425991,42.10497248,172.19,172.01,42.10497248]
[1740159426189,42.10497248,172.16,172.05,0.03931018]
[1740159426487,0.04203981,172.08,172.05,0.03931018]
[1740159426795,2.7832,172.2,172.07,42.10497248]
[1740159426995,2.7832,172.2,172.08,2.8018]
[1740159427288,2.7832,172.2,172.1,42.10497248]
[1740159427496,42.10497248,172.28,172.13,42.10497248]
[1740159427798,49.91667248,172.28,172.13,42.10497248]
[1740159427984,0.04112868,172.22,172.19,0.04148493]
[1740159429991,42.14610116,172.22,172.08,44.90677248]
[1740159430196,42.10497248,172.19,172.02,2.5422]
[1740159430399,42.10497248,172.16,172.03,2.6251]
[1740159430793,42.10497248,172.13,172.03,2.6251]
[1740159431398,0.0420105,172.1,172.06,0.04238988]
[1740159431593,42.14698298,172.1,172.06,0.04238988]
[1740159431901,8.067,172.09,172.06,0.04238988]
[1740159432592,0.0420105,172.1,172.06,0.04238988]
[1740159437493,8.067,172.2,172.07,42.10497248]
[1740159437999,42.10497248,172.16,172.05,7.74]
[1740159439002,0.04306472,172.12,172.09,0.03824484]
[1740159439501,0.04015284,172.12,172.09,0.04058274]
[1740159441601,0.04015284,172.12,171.86,15.56801601]
[1740159441602,42.10497248,172.1,171.97,5.3858]
[1740159441902,42.10497248,172.07,171.97,5.3858]
[1740159442304,2.5793,172.09,171.97,5.3858]
[1740159442701,0.0371758,172.05,172.01,0.0386593]
[1740159444202,0.0371758,172.05,172.01,42.14363178]
[1740159444408,0.0371758,172.05,172.02,2.6707]
[1740159444609,42.10497248,172.16,172.02,2.6707]
[1740159445906,2.8088,172.15,172.02,2.6707]
[1740159446107,0.04004396,172.11,172.07,0.03824102]
[1740159446307,42.10497248,172.1,172.07,0.03824102]
[1740159446707,44.89607248,172.1,172.07,0.03824102]
[1740159447711,0.04004396,172.11,172.07,0.03824102]
[1740159449307,42.10497248,172.1,172.07,0.03824102]
[1740159449914,42.10497248,172.1,171.97,5.3858]
[1740159450612,42.10497248,172.04,171.89,42.10497248]
[1740159450813,42.10497248,172.04,171.9,8.0565]
[1740159451112,0.04051645,171.98,171.95,0.0366418]
[1740159451405,42.10497248,172.01,171.9,8.0565]
[1740159451914,0.04056077,171.98,171.95,0.04183883]
[1740159456911,42.10497248,171.97,171.79,0.81769261]
[1740159457110,2.6219,171.96,171.82,2.799]
[1740159457410,42.10497248,171.94,171.81,42.10497248]
[1740159458415,42.10497248,171.94,171.86,0.03823733]
[1740159458416,0.0393113,171.89,171.86,0.03823733]
[1740159462522,0.0393113,171.89,171.76,42.10497248]
[1740159462820,42.10497248,171.91,171.76,42.10497248]
[1740159463023,42.10497248,171.88,171.73,42.10497248]
[1740159463220,8.1239,171.87,171.73,42.10497248]
[1740159463922,0.04371276,171.82,171.78,0.04118539]
[1740159467022,42.14868524,171.82,171.68,42.10497248]
[1740159467223,42.14868524,171.82,171.64,42.10497248]
[1740159467224,42.10497248,171.79,171.64,42.10497248]
[1740159467427,42.10497248,171.76,171.62,5.3346]
[1740159467728,42.10497248,171.76,171.71,0.25246]
[1740159467927,2.7364,171.77,171.71,0.25246]
[1740159468327,0.0382788,171.76,171.71,0.25246]
[1740159470536,42.14325128,171.76,171.71,0.25246]
[1740159470734,2.7471,171.75,171.71,0.25246]
[1740159472634,0.0382788,171.76,171.71,0.25246]
[1740159473939,0.0382788,171.76,171.72,42.10497248]
[1740159474132,0.0382788,171.76,171.71,0.25246]
[1740159476641,0.0382788,171.76,171.72,42.10497248]
[1740159477641,0.0382788,171.76,171.71,0.25246]
[1740159478944,42.10497248,171.75,171.6,42.10497248]
[1740159479144,2.7109,171.74,171.6,42.10497248]
[1740159479344,2.7109,171.74,171.63,42.10497248]
[1740159479540,0.03984925,171.69,171.63,42.10497248]
[1740159481143,0.03984925,171.69,171.6,42.10497248]
[1740159481543,0.03931746,171.66,171.6,42.10497248]
[1740159481747,0.03931746,171.66,171.63,42.10497248]
[1740159482137,42.10497248,171.78,171.63,42.10497248]
[1740159482447,7.4366,171.79,171.66,42.10497248]
[1740159482848,5.0704,171.79,171.69,42.10497248]
[1740159483250,42.10497248,171.85,171.72,42.10497248]
[1740159483550,0.04291208,171.76,171.72,0.03980674]
[1740159483749,2.3662,171.81,171.68,2.456]
[1740159483939,0.0377895,171.76,171.72,0.04468585]
[1740159485941,0.0377895,171.76,171.72,42.14965833]
[1740159486445,42.10497248,171.75,171.72,0.04468585]
[1740159486646,2.4525,171.74,171.6,42.10497248]
[1740159486847,2.4525,171.74,171.61,2.4913]
[1740159487445,2.4525,171.74,171.63,42.10497248]
[1740159487645,2.4525,171.74,171.64,2.5385]
[1740159487847,0.03885203,171.7,171.64,5.1234]
[1740159488750,0.03885203,171.7,171.66,42.10497248]
[1740159489649,5.097,171.8,171.66,42.10497248]
[1740159490045,42.10497248,171.7,171.48,57.81368723]
[1740159490241,42.10497248,171.67,171.53,42.10497248]
[1740159491152,0.04291509,171.62,171.58,0.03851024]
[1740159493247,0.04291509,171.62,171.58,42.14348272]
[1740159493950,0.04291509,171.62,171.59,2.5627]
[1740159494148,42.10497248,171.74,171.61,42.10497248]
[1740159494652,42.10497248,171.71,171.52,42.10497248]
[1740159494853,5.1645,171.7,171.56,42.10497248]
[1740159495353,0.04164132,171.65,171.61,0.04333758]
[1740159497760,42.10497248,171.64,171.38,7.98582878]
[1740159497961,42.10497248,171.58,171.45,2.4171]
[1740159498160,42.10497248,171.61,171.46,42.10497248]
[1740159498659,42.10497248,171.58,171.47,2.5075]
[1740159498860,42.10497248,171.58,171.52,0.03909655]
[1740159498861,0.04136604,171.55,171.52,0.03909655]
[1740159499463,5.86886604,171.55,171.52,0.03909655]
[1740159499658,0.04136604,171.55,171.52,0.03909655]
[1740159500863,5.86876604,171.55,171.52,0.03909655]
[1740159501265,42.14633852,171.55,171.4,5.8323]
[1740159501466,42.10497248,171.52,171.39,5.1953]
[1740159501964,5.829,171.51,171.39,5.1953]
[1740159502163,42.10497248,171.55,171.4,42.10497248]
[1740159502363,0.04411457,171.47,171.4,42.10497248]
[1740159502557,0.04411457,171.47,171.39,5.1953]
[1740159505069,42.10497248,171.45,171.28,57.86613152]
[1740159505267,10.9,171.55,171.34,42.10497248]
[1740159505268,42.10497248,171.49,171.34,42.10497248]
[1740159505461,0.04441656,171.38,171.34,42.10497248]
[1740159505666,5.1,171.51,171.37,42.10497248]
[1740159505862,6.721e-05,171.38,171.37,42.10497248]
[1740159506170,5.1,171.51,171.38,2.5528]
[1740159506365,5.1,171.51,171.41,42.10497248]
[1740159506566,5.83,171.47,171.41,42.10497248]
[1740159507168,0.04339308,171.46,171.42,0.04153479]